[Event "1000GM Schev-B January 2024"]
[Site "Sunnyvale"]
[Date "2024.01.21"]
[Round "3.2"]
[White "Talwalkar, Vedant"]
[Black "Contreras, Henry"]
[Result "1/2-1/2"]
[ECO "B45"]
[WhiteElo "1890"]
[BlackElo "2107"]
[Annotator "RC"]
[PlyCount "104"]
[EventDate "2024.01.20"]
[EventType "schev"]
[EventCountry "USA"]
[SourceTitle "playchess.com"]
[Source "ChessBase"]
[SourceQuality "1"]
[TimeControl "5400+30"]

1. e4 {[%emt 0:00:30]} c5 {[%emt 0:00:30]} 2. Nf3 {[%emt 0:00:30]} e6 {[%emt 0:00:30]} 3. d4 {[%emt 0:00:30]} cxd4 {[%emt 0:00:30]} 4. Nxd4 {[%emt 0:00:30]} Nf6 {[%emt 0:03:48]} 5. Nc3 {[%emt 0:00:00]} Nc6 {[%emt 0:00:36]} 6. Ndb5 {[%emt 0:00:00]} Bb4 {[%emt 0:00:13]} 7. a3 {[%emt 0:00:00]} Bxc3+ {[%emt 0:00:08]} 8. Nxc3 {[%emt 1:32:30]} d5 {[%emt 0:00:01]} 9. exd5 {[%emt 0:00:00]} exd5 {[%emt 0:00:03]} 10. Bd3 {[%emt 0:00:00]} d4 {[%emt 0:00:15]} 11. Ne2 {[%emt 0:00:00]} O-O {[%emt 0:00:18]} 12. O-O {[%emt 0:02:00]} Bg4 {[%emt 0:02:21]} 13. f3 {[%emt 0:00:00]} Be6 {[%emt 0:00:40]} 14. Ng3 {[%emt 0:00:00]} Nd5 {[%emt 0:00:50]} 15. Re1 {[%emt 0:00:00]} a5 {[%emt 0:00:46]} 16. Ne4 {[%emt 0:00:00]} Bf5 {[%emt 0:01:20]} 17. Nc5 {[%emt 0:00:00]} Qb6 {[%emt 0:01:41]} 18. Na4 {[%emt 0:00:00]} Qa7 {[%emt 0:02:17]} 19. Bxf5 {[%emt 0:00:00]} b5 {[%emt 1:23:13]} 20. Bxh7+ {[%emt 0:00:00]} Kxh7 {[%emt 0:00:00]} 21. Qd3+ {[%emt 0:00:00]} Kg8 {[%emt 0:00:00]} 22. Qxb5 {[%emt 0:00:00]} Qd7 {[%emt 0:00:00]} 23. Qd3 {[%emt 0:00:00]} Rfc8 {[%emt 0:00:00]} 24. b3 {[%emt 0:00:00]} Ncb4 {[%emt 0:00:00]} 25. axb4 {[%emt 0:00:00]} Nxb4 {[%emt 0:00:00]} 26. Qd1 {[%emt 0:00:00]} Nxc2 {[%emt 0:00:00]} 27. Nb6 {[%emt 0:00:00]} Qb5 {[%emt 0:00:00]} 28. Nxc8 {[%emt 0:00:00]} Rxc8 {[%emt 0:04:30]} 29. Bb2 {[%emt 0:00:00]} d3 {[%emt 0:00:00]} 30. Rb1 {[%emt 0:00:00]} Qb6+ {[%emt 0:00:00]} 31. Kh1 {[%emt 0:00:00]} Nxe1 {[%emt 0:00:00]} 32. Qxe1 {[%emt 0:00:00]} Qxb3 {[%emt 0:00:00]} 33. Qd1 {[%emt 0:00:00]} Rb8 {[%emt 0:00:00]} 34. Kg1 {[%emt 0:00:00]} a4 {[%emt 0:00:00]} 35. Qxb3 {[%emt 0:00:00]} Rxb3 {[%emt 0:00:00]} 36. Rd1 {[%emt 0:00:00]} Rxb2 {[%emt 0:00:00]} 37. Rxd3 {[%emt 0:00:00]} Rb3 {[%emt 0:04:30]} 38. Rd8+ {[%emt 0:13:00]} Kh7 {[%emt 0:00:00]} 39. Ra8 {[%emt 0:00:00]} a3 {[%emt 0:00:00]} 40. Kf2 {[%emt 0:00:00]} Rb2+ {[%emt 0:00:00]} 41. Ke3 {[%emt 0:01:30]} a2 {[%emt 0:00:00]} 42. g4 {[%emt 0:00:00]} Rxh2 {[%emt 0:00:00]} 43. Kf4 {[%emt 0:00:00]} Kg6 {[%emt 0:00:00]} 44. Ra6+ {[%emt 0:00:00]} f6 {[%emt 0:00:00]} 45. g5 {[%emt 0:00:00]} Rf2 {[%emt 0:00:00]} 46. gxf6 {[%emt 0:00:00]} gxf6 {[%emt 0:00:00]} 47. Ke3 {[%emt 0:00:00]} Rb2 {[%emt 0:00:00]} 48. Kf4 {[%emt 0:00:00]} Kf7 {[%emt 0:00:00]} 49. Kf5 {[%emt 0:00:00]} Ke7 {[%emt 0:00:00]} 50. Ra7+ {[%emt 0:00:00]} Kd6 {[%emt 0:00:00]} 51. Kxf6 {[%emt 0:00:00]} Kc5 {[%emt 0:00:00]} 52. f4 {[%emt 0:00:00]} Kb5 {[%emt 0:00:00]} 1/2-1/2

[Event "1000GM Schev-B January 2024"]
[Site "Sunnyvale"]
[Date "2024.01.21"]
[Round "3.3"]
[White "Rivera, Ingris"]
[Black "Jin, Austin"]
[Result "1-0"]
[ECO "D55"]
[WhiteElo "2145"]
[BlackElo "1836"]
[Annotator "RC"]
[PlyCount "113"]
[EventDate "2024.01.20"]
[EventType "schev"]
[EventCountry "USA"]
[SourceTitle "playchess.com"]
[Source "ChessBase"]
[SourceQuality "1"]
[TimeControl "5400+30"]

1. d4 {[%emt 0:03:43]} d5 {[%emt 0:00:12]} 2. c4 {[%emt 0:00:18]} e6 {[%emt 0:00:05]} 3. Nc3 {[%emt 0:00:16]} Be7 {[%emt 0:00:07]} 4. Nf3 {[%emt 0:00:14]} Nf6 {[%emt 0:00:09]} 5. Bg5 {[%emt 0:00:17]} O-O {[%emt 0:00:15]} 6. e3 {[%emt 0:00:04]} b6 {[%emt 0:00:12]} 7. cxd5 {[%emt 0:00:35]} Nxd5 {[%emt 0:00:12]} 8. Bxe7 {[%emt 0:00:34]} Qxe7 {[%emt 0:00:17]} 9. Bd3 {[%emt 0:01:12]} Bb7 {[%emt 0:01:42]} 10. O-O {[%emt 0:00:29]} Nd7 {[%emt 0:02:08]} 11. Re1 {[%emt 0:04:49]} c5 {[%emt 0:06:05]} 12. Nxd5 {[%emt 0:05:04]} exd5 {[%emt 0:03:38]} 13. dxc5 {[%emt 0:02:14]} bxc5 {[%emt 0:02:27]} 14. Rc1 {[%emt 0:01:41]} Nf6 {[%emt 0:02:09]} 15. Qa4 {[%emt 0:02:37]} Rfd8 {[%emt 0:08:04]} 16. Qa5 {[%emt 0:12:02]} Rdc8 {[%emt 0:06:21]} 17. b3 {[%emt 0:11:39]} Qd6 {[%emt 0:05:46]} 18. Bf5 {[%emt 0:02:31]} Rc6 {[%emt 0:03:56]} 19. Red1 {[%emt 0:03:21]} Bc8 {[%emt 0:08:05]} 20. Bxc8 {[%emt 0:03:40]} Raxc8 {[%emt 0:03:13]} 21. h3 {[%emt 0:02:59]} h6 {[%emt 0:01:53]} 22. Rc2 {[%emt 0:01:10]} a6 {[%emt 0:02:48]} 23. Rcd2 {[%emt 0:07:06]} Qe7 {[%emt 0:03:12]} 24. Qa4 {[%emt 0:04:40]} Qc7 {[%emt 0:10:00]} 25. Qh4 {[%emt 0:06:14]} Re8 {[%emt 0:04:29]} 26. Qa4 {[%emt 0:09:14]} Rc8 {[%emt 0:05:31]} 27. Qa3 {[%emt 0:01:09]} c4 {[%emt 0:13:09]} 28. Nd4 {[%emt 0:00:37]} c3 {[%emt 0:01:07]} 29. Rc2 {[%emt 0:06:00]} Rb6 {[%emt 0:02:10]} 30. Rdc1 {[%emt 0:01:37]} Qe5 {[%emt 0:05:24]} 31. Rxc3 {[%emt 0:04:57]} Rxc3 {[%emt 0:00:40]} 32. Rxc3 {[%emt 0:00:05]} Ne4 {[%emt 0:00:05]} 33. Rc8+ {[%emt 0:02:27]} Kh7 {[%emt 0:00:02]} 34. Qc1 {[%emt 0:00:22]} Rf6 {[%emt 0:00:59]} 35. f3 {[%emt 0:01:00]} Ng3 {[%emt 0:00:37]} 36. Qc2+ {[%emt 0:00:42]} g6 {[%emt 0:00:22]} 37. Rc3 {[%emt 0:00:36]} Qg5 {[%emt 0:00:51]} 38. Qd3 {[%emt 0:00:35]} Qh4 {[%emt 0:00:25]} 39. Nc2 {[%emt 0:00:26]} Qh5 {[%emt 0:00:38]} 40. Ne1 {[%emt 0:00:38]} Qh4 {[%emt 0:00:09]} 41. Nc2 {[%emt 0:00:14]} Qg5 {[%emt 0:00:23]} 42. f4 {[%emt 0:00:36]} Qh5 {[%emt 0:00:12]} 43. Rc5 {[%emt 0:00:21]} Rf5 {[%emt 0:01:17]} 44. Nd4 {[%emt 0:00:13]} Rf6 {[%emt 0:00:10]} 45. Nf3 {[%emt 0:00:27]} Rf5 {[%emt 0:00:20]} 46. Qxa6 {[%emt 0:00:40]} g5 {[%emt 0:00:52]} 47. Qd3 {[%emt 0:00:40]} Kg7 {[%emt 0:00:36]} 48. Rxd5 {[%emt 0:00:32]} Rf6 {[%emt 0:00:31]} 49. Nxg5 {[%emt 0:00:32]} Ne2+ {[%emt 0:00:23]} 50. Kh2 {[%emt 0:00:33]} Qh4 {[%emt 0:00:41]} 51. Qxe2 {[%emt 0:00:14]} hxg5 {[%emt 0:00:05]} 52. Rxg5+ {[%emt 0:00:11]} Rg6 {[%emt 0:00:03]} 53. Rxg6+ {[%emt 0:00:31]} fxg6 {[%emt 0:00:01]} 54. b4 {[%emt 0:00:27]} Qe7 {[%emt 0:00:09]} 55. b5 {[%emt 0:00:17]} g5 {[%emt 0:00:34]} 56. Qb2+ {[%emt 0:00:19]} Kh7 {[%emt 0:00:13]} 57. Qe5 {[%emt 0:00:15]} 1-0

[Event "1000GM Schev-B January 2024"]
[Site "Sunnyvale"]
[Date "2024.01.21"]
[Round "3.4"]
[White "Hernandez Jimenez, Jeronimo"]
[Black "Stevens, Adam B"]
[Result "1/2-1/2"]
[ECO "B10"]
[WhiteElo "2187"]
[BlackElo "1878"]
[Annotator "RC"]
[PlyCount "52"]
[EventDate "2024.01.20"]
[EventType "schev"]
[EventCountry "USA"]
[SourceTitle "playchess.com"]
[Source "ChessBase"]
[SourceQuality "1"]
[TimeControl "5400+30"]

1. c4 {[%emt 0:01:01]} c6 {[%emt 0:00:56]} 2. e4 {[%emt 0:00:27]} d5 {[%emt 0:00:06]} 3. cxd5 {[%emt 0:00:16]} cxd5 {[%emt 0:00:02]} 4. exd5 {[%emt 0:00:11]} Nf6 {[%emt 0:00:02]} 5. Nc3 {[%emt 0:01:21]} Nxd5 {[%emt 0:00:06]} 6. Nf3 {[%emt 0:01:17]} Nxc3 {[%emt 0:01:56]} 7. bxc3 {[%emt 0:00:13]} g6 {[%emt 0:00:01]} 8. d4 {[%emt 0:02:35]} Bg7 {[%emt 0:00:03]} 9. Bb5+ {[%emt 0:00:59]} Bd7 {[%emt 0:00:15]} 10. Bxd7+ {[%emt 0:00:42]} Qxd7 {[%emt 0:02:25]} 11. O-O {[%emt 0:00:06]} O-O {[%emt 0:00:21]} 12. Bf4 {[%emt 0:03:32]} e6 {[%emt 0:04:12]} 13. Ne5 {[%emt 0:01:23]} Qc8 {[%emt 0:01:16]} 14. Qb3 {[%emt 0:02:28]} Nc6 {[%emt 0:00:10]} 15. Nc4 {[%emt 0:01:44]} b6 {[%emt 0:02:19]} 16. a4 {[%emt 0:00:09]} Qd7 {[%emt 0:07:32]} 17. Qb5 {[%emt 0:04:05]} Rfd8 {[%emt 0:00:35]} 18. h3 {[%emt 0:00:37]} Bf8 {[%emt 0:03:25]} 19. Bg5 {[%emt 0:02:27]} Be7 {[%emt 0:03:06]} 20. Bxe7 {[%emt 0:01:57]} Nxe7 {[%emt 0:00:05]} 21. Ne5 {[%emt 0:02:26]} Qc7 {[%emt 0:05:12]} 22. Rfc1 {[%emt 0:00:52]} Rac8 {[%emt 0:01:11]} 23. a5 {[%emt 0:01:53]} bxa5 {[%emt 0:00:44]} 24. Qxa5 {[%emt 0:01:04]} Qxa5 {[%emt 0:01:04]} 25. Rxa5 {[%emt 0:00:02]} Rxd4 {[%emt 0:00:28]} 26. Rxa7 {[%emt 0:00:06]} Nc6 {[%emt 0:02:20]} 1/2-1/2

[Event "1000GM Schev-B January 2024"]
[Site "Sunnyvale"]
[Date "2024.01.21"]
[Round "3.5"]
[White "Ganesan, Vikrant"]
[Black "Angeles Mercado, Anthony R"]
[Result "0-1"]
[ECO "A28"]
[WhiteElo "1870"]
[BlackElo "2057"]
[Annotator "RC"]
[PlyCount "54"]
[EventDate "2024.01.20"]
[EventType "schev"]
[EventCountry "USA"]
[SourceTitle "playchess.com"]
[Source "ChessBase"]
[SourceQuality "1"]
[TimeControl "5400+30"]

1. c4 e5 2. Nc3 Nf6 3. Nf3 Nc6 4. e4 Bc5 5. Nxe5 Nxe5 6. d4 Nxe4 7. Nxe4 Bb4+ 8. Nd2 Nc6 9. a3 O-O 10. Be2 Nxd4 11. axb4 Re8 12. Nf3 Nxe2 13. Be3 Nf4 14. O-O Ng6 15. Bxa7 d6 16. Be3 Bg4 17. Rxa8 Qxa8 18. h3 Be6 19. b3 Qa3 20. b5 Bd7 {[%emt 0:49:04]} 21. Qd3 {[%emt 0:10:30]} Bc8 {[%emt 0:00:30]} 22. Qc3 {[%emt 0:00:30]} Qa2 {[%emt 0:00:30]} 23. Nd4 {[%emt 0:00:30]} Qa8 {[%emt 0:00:30]} 24. c5 {[%emt 0:00:30]} dxc5 {[%emt 0:00:30]} 25. Qxc5 {[%emt 0:00:30]} c6 {[%emt 0:00:30]} 26. bxc6 {[%emt 0:00:30]} bxc6 {[%emt 0:00:30]} 27. Ra1 {[%emt 0:00:30]} Qxa1+ {[%emt 0:00:30]} 0-1

[Event "1000GM Schev-B January 2024"]
[Site "Sunnyvale"]
[Date "2024.01.21"]
[Round "4.1"]
[White "Contreras, Henry"]
[Black "Bhatta, Rohit"]
[Result "0-1"]
[ECO "C52"]
[WhiteElo "2107"]
[BlackElo "1867"]
[Annotator "TA"]
[PlyCount "44"]
[EventDate "2024.01.20"]
[EventType "schev"]
[EventCountry "USA"]
[SourceTitle "playchess.com"]
[Source "ChessBase"]
[SourceQuality "1"]
[TimeControl "5400+30"]

{[%evp 10,44,0,0,0,0,0,0,6,8,11,0,0,1,6,14,3,-34,-23,-80,-65,-315,-329,-362,-367,-400,-386,-386,-395,-475,-463,-531,-529,-527,-519,-513,-510]} 1. e4 {[%emt 0:05:53]} e5 {[%emt 0:00:06]} 2. Nf3 {[%emt 0:00:08]} Nc6 {[%emt 0:00:07]} 3. Bc4 {[%emt 0:00:10]} Bc5 {[%emt 0:00:11]} 4. b4 {[%emt 0:00:09]} Bxb4 {[%emt 0:00:07][%cal Bc5b4,Bb4a5,Ba5b6][%mdl 32]} 5. c3 {[%emt 0:00:01]} Ba5 {[%emt 0:00:16]} 6. d4 $1 {[%emt 0:00:03]} b5 {[%emt 0:00:37] C52: Evans Gambit Accepted: 5 c3 Ba5.} 7. Bxb5 {[%emt 0:08:21] Bg5 is the strong threat.} (7. Bb3 Nxd4 8. Bxf7+ Kxf7 9. Nxe5+ Kf8 10. Qxd4 Nf6 11. Nc6 Bb6 12. Qb4+ {1-0 Contreras,H (2151)-Bhatta,R (1775) Sunnyvale 1000-C 09 2023 (4)}) 7... Nxd4 $1 {[%emt 0:00:07]} 8. Nxd4 {[%emt 0:00:18]} exd4 {[%emt 0:00:03] The position is equal.} 9. Qxd4 {[%emt 0:00:44][%cal Ob5c4] next Bc4! is good for White.} Qf6 {[%emt 0:00:03]} 10. O-O {[%emt 0:01:27] With the idea Qd5.} Bb6 {[%emt 0:00:05]} 11. Qd3 {[%emt 0:01:05] White wants to play Ba3.} Ne7 {[%emt 0:00:40]} 12. Nd2 {[%emt 0:00:29] Threatening Ba3.} O-O {[%emt 0:02:18]} 13. Ba3 {[%emt 0:00:42] Black must now prevent e5.} Re8 {[%emt 0:14:24]} 14. Nc4 {[%emt 0:02:03] [#]} ({Much worse is} 14. Bxd7 Bxd7 15. Qxd7 Ng6 $17) (14. e5 $11 {remains equal.} Qg6 15. Qf3) 14... Ng6 $1 $17 {[%emt 0:04:28]} 15. Nxb6 $2 {[%emt 0:02:24] Now White is beyond hope.} (15. Bxd7 $2 {perishes.} Nf4 16. Qd1 Qg6 $19) (15. Qg3 $15) 15... axb6 $19 {[%emt 0:01:20] [#]} 16. Bc1 $146 {[%emt 0:01:02] [#]} ({Predecessor:} 16. Bb2 c6 17. Bc4 Ne5 18. Qe2 Nxc4 19. Qxc4 Ba6 20. Qb3 Bxf1 21. Rxf1 Qe6 22. c4 Qxe4 {0-1 Ireland,D (1961)-Valentine,B (1959) BCF-chT4S 1920 (4NCL) 2019 (2.82)}) 16... c6 $1 {[%emt 0:05:28]} 17. Bc4 {[%emt 0:05:21]} Ne5 {[%emt 0:00:36]} 18. Qd4 {[%emt 0:00:16]} Nxc4 {[%emt 0:00:13][%mdl 64] Remove Defender} 19. Qxc4 {[%emt 0:00:02]} Ba6 {[%emt 0:00:41][%mdl 64] Skewer. Black is clearly winning.} 20. Qb4 {[%emt 0:00:01] White is weak on the light squares} Bxf1 {[%emt 0:00:36]} 21. Kxf1 {[%emt 0:00:03]} b5 {[%emt 0:15:03] And now ...Ra4 would win.} 22. Be3 {[%emt 0:03:39]} Ra4 {[%emt 0:02:34] Weighted Error Value: White=0.45/Black=0.01 (flawless)} 0-1

[Event "1000GM Schev-B January 2024"]
[Site "Sunnyvale"]
[Date "2024.01.21"]
[Round "4.2"]
[White "Rivera, Ingris"]
[Black "Talwalkar, Vedant"]
[Result "1-0"]
[ECO "A83"]
[WhiteElo "2145"]
[BlackElo "1890"]
[Annotator "RC"]
[PlyCount "65"]
[EventDate "2024.01.20"]
[EventType "schev"]
[EventCountry "USA"]
[SourceTitle "playchess.com"]
[Source "ChessBase"]
[SourceQuality "1"]
[TimeControl "5400+30"]

1. d4 {[%emt 0:00:08]} f5 {[%emt 0:00:19]} 2. e4 {[%emt 0:00:18]} fxe4 {[%emt 0:00:08]} 3. Nc3 {[%emt 0:00:13]} Nf6 {[%emt 0:00:08]} 4. Bg5 {[%emt 0:00:17]} g6 {[%emt 0:00:19]} 5. f3 {[%emt 0:00:24]} d5 {[%emt 0:00:13]} 6. fxe4 {[%emt 0:01:14]} Nxe4 {[%emt 0:00:40]} 7. Nxe4 {[%emt 0:00:28]} dxe4 {[%emt 0:00:13]} 8. Bc4 {[%emt 0:03:23]} Nc6 {[%emt 0:00:11]} 9. c3 {[%emt 0:00:55]} Na5 {[%emt 0:00:19]} 10. Be2 {[%emt 0:02:48]} Qd5 {[%emt 0:00:42]} 11. Bf4 {[%emt 0:03:47]} c6 {[%emt 0:14:13]} 12. Be5 {[%emt 0:24:28]} Rg8 {[%emt 0:00:12]} 13. b3 {[%emt 0:02:33]} b5 {[%emt 0:16:44]} 14. Rc1 {[%emt 0:23:10]} Bh6 {[%emt 0:05:48]} 15. c4 {[%emt 0:05:27]} Qf7 {[%emt 0:00:33]} 16. Nh3 {[%emt 0:03:34]} b4 {[%emt 0:16:31]} 17. Rf1 {[%emt 0:04:26]} Qe6 {[%emt 0:00:26]} 18. Nf4 {[%emt 0:01:42]} Qd7 {[%emt 0:04:09]} 19. Qc2 {[%emt 0:01:31]} Qb7 {[%emt 0:01:22]} 20. Qxe4 {[%emt 0:01:47]} Bf5 {[%emt 0:00:15]} 21. Qe3 {[%emt 0:02:43]} Rd8 {[%emt 0:07:26]} 22. g4 {[%emt 0:03:50]} Bc8 {[%emt 0:00:27]} 23. Qh3 {[%emt 0:00:55]} Bxf4 {[%emt 0:01:12]} 24. Rxf4 {[%emt 0:01:13]} e6 {[%emt 0:00:13]} 25. g5 {[%emt 0:03:32]} c5 {[%emt 0:01:20]} 26. dxc5 {[%emt 0:01:18]} Nc6 {[%emt 0:02:14]} 27. Bf3 {[%emt 0:01:53]} Qd7 {[%emt 0:01:17]} 28. Rd1 {[%emt 0:00:14]} Nxe5 {[%emt 0:00:54]} 29. Rxd7 {[%emt 0:00:21]} Rxd7 {[%emt 0:00:04]} 30. Qxe6+ {[%emt 0:00:38]} Kd8 {[%emt 0:00:25]} 31. Qxg8+ {[%emt 0:00:18]} Kc7 {[%emt 0:00:04]} 32. Be2 {[%emt 0:01:23]} Re7 {[%emt 0:00:04]} 33. Re4 {[%emt 0:00:41]} 1-0

[Event "1000GM Schev-B January 2024"]
[Site "Sunnyvale"]
[Date "2024.01.21"]
[Round "4.3"]
[White "Jin, Austin"]
[Black "Hernandez Jimenez, Jeronimo"]
[Result "1/2-1/2"]
[ECO "B12"]
[WhiteElo "1836"]
[BlackElo "2187"]
[Annotator "RC"]
[PlyCount "91"]
[EventDate "2024.01.20"]
[EventType "schev"]
[EventCountry "USA"]
[SourceTitle "playchess.com"]
[Source "ChessBase"]
[SourceQuality "1"]
[TimeControl "5400+30"]

1. e4 {[%emt 1:31:00]} c6 {[%emt 0:19:06]} 2. d4 {[%emt 0:00:00]} d5 {[%emt 0:00:08]} 3. e5 {[%emt 0:00:00]} c5 {[%emt 0:00:11]} 4. dxc5 {[%emt 0:00:00]} e6 {[%emt 0:00:05]} 5. Nf3 {[%emt 0:00:00]} Bxc5 {[%emt 0:00:20]} 6. Bd3 {[%emt 0:00:00]} Nc6 {[%emt 0:00:05]} 7. O-O {[%emt 0:00:00]} Nge7 {[%emt 0:00:08]} 8. a3 {[%emt 0:00:00]} a6 {[%emt 0:00:06]} 9. Re1 {[%emt 0:00:00]} Ng6 {[%emt 0:01:10]} 10. b4 {[%emt 0:00:00]} Ba7 {[%emt 0:00:03]} 11. Bb2 {[%emt 0:00:00]} O-O {[%emt 0:01:36]} 12. Bxg6 {[%emt 0:00:00]} fxg6 {[%emt 0:00:02]} 13. Nbd2 {[%emt 0:00:00]} g5 {[%emt 0:03:34]} 14. Nb3 {[%emt 0:00:00]} Bd7 {[%emt 0:03:51]} 15. Nfd4 {[%emt 0:00:00]} Rc8 {[%emt 0:00:40]} 16. Re2 {[%emt 0:00:00]} Ne7 {[%emt 0:01:53]} 17. Qd2 {[%emt 0:00:00]} h6 {[%emt 0:00:44]} 18. Rd1 {[%emt 0:00:00]} Ng6 {[%emt 0:02:20]} 19. g3 {[%emt 0:00:00]} g4 {[%emt 0:01:15]} 20. Kg2 {[%emt 0:00:00]} Qe8 {[%emt 0:05:28]} 21. Rh1 {[%emt 0:00:00]} Qf7 {[%emt 0:00:29]} 22. h3 {[%emt 0:00:00]} Bb5 {[%emt 0:00:01]} 23. Ree1 {[%emt 0:00:00]} Rc4 {[%emt 0:01:52]} 24. hxg4 {[%emt 0:00:00]} Bxd4 {[%emt 0:01:36]} 25. Nxd4 {[%emt 0:00:00]} Rxd4 {[%emt 0:00:30]} 26. Bxd4 {[%emt 0:00:00]} Qf3+ {[%emt 0:00:11]} 27. Kg1 {[%emt 0:00:00]} Nf4 {[%emt 0:01:39]} 28. Rh2 {[%emt 0:00:00]} Qxg4 {[%emt 0:07:25]} 29. Rh4 {[%emt 0:00:36]} Ne2+ {[%emt 0:00:15]} 30. Rxe2 {[%emt 0:00:11]} Qxe2 {[%emt 0:00:11]} 31. Qxe2 {[%emt 0:00:31]} Bxe2 {[%emt 0:00:04]} 32. f4 {[%emt 0:01:08]} Ra8 {[%emt 0:01:25]} 33. Rh2 {[%emt 0:00:27]} Bc4 {[%emt 0:00:04]} 34. Rf2 {[%emt 0:03:24]} g6 {[%emt 0:00:39]} 35. Bc5 {[%emt 0:01:21]} h5 {[%emt 0:00:28]} 36. Kg2 {[%emt 0:01:40]} a5 {[%emt 0:00:05]} 37. g4 {[%emt 0:00:40]} hxg4 {[%emt 0:00:35]} 38. Kg3 {[%emt 0:00:08]} axb4 {[%emt 0:00:10]} 39. Bxb4 {[%emt 0:00:08]} Kg7 {[%emt 0:00:33]} 40. Rh2 {[%emt 0:00:28]} Rh8 {[%emt 0:00:20]} 41. Rxh8 {[%emt 0:00:14]} Kxh8 {[%emt 0:00:20]} 42. Kxg4 {[%emt 0:00:11]} Kg7 {[%emt 0:00:05]} 43. Kg5 {[%emt 0:00:32]} Ba2 {[%emt 0:00:14]} 44. c3 {[%emt 0:00:19]} Bb1 {[%emt 0:00:02]} 45. Kg4 {[%emt 0:01:02]} Kf7 {[%emt 0:00:04]} 46. Kf3 {[%emt 0:00:09]} 1/2-1/2

[Event "1000GM Schev-B January 2024"]
[Site "Sunnyvale"]
[Date "2024.01.21"]
[Round "4.4"]
[White "Stevens, Adam B"]
[Black "Angeles Mercado, Anthony R"]
[Result "0-1"]
[ECO "A70"]
[WhiteElo "1878"]
[BlackElo "2057"]
[Annotator "RC"]
[PlyCount "94"]
[EventDate "2024.01.20"]
[EventType "schev"]
[EventCountry "USA"]
[SourceTitle "playchess.com"]
[Source "ChessBase"]
[SourceQuality "1"]
[TimeControl "5400+30"]

1. d4 {[%emt 1:31:00]} Nf6 {[%emt 0:04:50]} 2. c4 {[%emt 0:00:00]} e6 {[%emt 0:04:59]} 3. Nf3 {[%emt 0:00:00]} c5 {[%emt 0:10:07]} 4. d5 {[%emt 0:00:00]} exd5 {[%emt 0:00:14]} 5. cxd5 {[%emt 0:00:00]} g6 {[%emt 0:00:06]} 6. Nc3 {[%emt 0:00:00]} d6 {[%emt 0:00:31]} 7. e4 {[%emt 0:00:00]} Bg7 {[%emt 0:00:12]} 8. h3 {[%emt 0:00:00]} O-O {[%emt 0:00:15]} 9. Bd3 {[%emt 0:00:00]} Re8 {[%emt 0:01:03]} 10. O-O {[%emt 0:00:00]} Na6 {[%emt 0:01:41]} 11. Re1 {[%emt 0:00:00]} Nc7 {[%emt 0:04:06]} 12. a4 {[%emt 0:00:00]} a6 {[%emt 0:03:49]} 13. a5 {[%emt 0:00:00]} Nb5 {[%emt 0:04:33]} 14. Qc2 {[%emt 0:00:00]} Nxc3 {[%emt 0:12:14]} 15. bxc3 {[%emt 0:00:00]} Qc7 {[%emt 0:02:44]} 16. Bf4 {[%emt 0:00:00]} c4 {[%emt 0:06:02]} 17. Bf1 {[%emt 0:00:00]} Bd7 {[%emt 0:05:59]} 18. Nd2 {[%emt 0:00:00]} Bb5 {[%emt 0:00:50]} 19. Bh2 {[%emt 0:00:00]} Nd7 {[%emt 0:02:51]} 20. f4 {[%emt 0:00:00]} Rac8 {[%emt 0:06:40]} 21. Kh1 {[%emt 0:00:00]} Nc5 {[%emt 0:02:32]} 22. Re3 {[%emt 0:00:00]} Nd3 {[%emt 0:02:20]} 23. Nf3 {[%emt 0:00:00]} Qc5 {[%emt 0:02:15]} 24. Bg1 {[%emt 0:00:00]} Nxf4 {[%emt 0:01:40]} 25. e5 {[%emt 0:00:00]} Qxd5 {[%emt 0:01:37]} 26. exd6 {[%emt 0:00:00]} Rxe3 {[%emt 0:02:03]} 27. Bxe3 {[%emt 0:00:00]} Nd3 {[%emt 0:02:06]} 28. Nd4 {[%emt 0:00:00]} Re8 {[%emt 0:01:55]} 29. Bg1 {[%emt 0:00:00]} Qxd6 {[%emt 0:00:21]} 30. Nxb5 {[%emt 0:00:00]} axb5 {[%emt 0:00:05]} 31. Rb1 {[%emt 0:00:00]} Qd5 {[%emt 0:01:56]} 32. Rd1 {[%emt 0:00:00]} Rd8 {[%emt 0:00:27]} 33. Be2 {[%emt 0:00:00]} h5 {[%emt 0:02:21]} 34. Bf3 {[%emt 0:00:00]} Qd7 {[%emt 0:00:34]} 35. Bb6 {[%emt 0:00:00]} Re8 {[%emt 0:00:06]} 36. Be2 {[%emt 0:00:00]} Qf5 {[%emt 0:01:58]} 37. Bxd3 {[%emt 0:00:00]} cxd3 {[%emt 0:00:06]} 38. Qxd3 {[%emt 0:00:00]} Re1+ {[%emt 0:00:30]} 39. Bg1 {[%emt 0:00:00]} Rxd1 {[%emt 0:01:41]} 40. Qxd1 {[%emt 0:00:00]} Bxc3 {[%emt 0:00:10]} 41. Qd8+ {[%emt 0:00:00]} Kh7 {[%emt 0:00:07]} 42. Qc7 {[%emt 0:00:00]} Bd2 {[%emt 0:02:35]} 43. Qd8 {[%emt 0:00:00]} Bc3 {[%emt 0:03:41]} 44. Qc7 {[%emt 0:00:00]} Be1 {[%emt 0:00:00]} 45. Bd4 {[%emt 0:00:00]} Qf1+ {[%emt 0:00:00]} 46. Bg1 {[%emt 0:00:00]} h4 {[%emt 0:00:29]} 47. Qd8 {[%emt 0:00:00]} Bf2 {[%emt 0:00:39]} 0-1

[Event "1000GM Schev-B January 2024"]
[Site "Sunnyvale"]
[Date "2024.01.21"]
[Round "4.5"]
[White "Gracia Alvarez, Gerardo Antonio"]
[Black "Ganesan, Vikrant"]
[Result "1-0"]
[ECO "B51"]
[WhiteElo "2224"]
[BlackElo "1870"]
[Annotator "RC"]
[PlyCount "67"]
[EventDate "2024.01.20"]
[EventType "schev"]
[EventCountry "USA"]
[SourceTitle "playchess.com"]
[Source "ChessBase"]
[SourceQuality "1"]
[TimeControl "5400+30"]

1. e4 {[%emt 0:00:02]} c5 {[%emt 0:00:35]} 2. Nf3 {[%emt 0:00:05]} d6 {[%emt 0:00:15]} 3. Bb5+ {[%emt 0:00:05]} Nd7 {[%emt 0:00:05]} 4. c3 {[%emt 0:00:09]} Ngf6 {[%emt 0:00:29]} 5. Bd3 {[%emt 0:00:05]} e6 {[%emt 0:01:21]} 6. O-O {[%emt 0:00:19]} a6 {[%emt 0:00:20]} 7. Bc2 {[%emt 0:00:17]} b5 {[%emt 0:00:14]} 8. d4 {[%emt 0:00:07]} Bb7 {[%emt 0:00:04]} 9. Nbd2 {[%emt 0:00:31]} Be7 {[%emt 0:00:14]} 10. Re1 {[%emt 0:00:52]} Qc7 {[%emt 0:01:17]} 11. Nf1 {[%emt 0:00:20]} Rc8 {[%emt 0:00:48]} 12. Bd3 {[%emt 0:00:13]} O-O {[%emt 0:00:44]} 13. Ng3 {[%emt 0:00:12]} Rfd8 {[%emt 0:01:06]} 14. Qe2 {[%emt 0:00:51]} g6 {[%emt 0:00:38]} 15. Bg5 {[%emt 0:04:57]} Nb6 {[%emt 0:11:32]} 16. h3 {[%emt 0:02:19]} e5 {[%emt 0:02:05]} 17. d5 {[%emt 0:00:26]} Ne8 {[%emt 0:04:13]} 18. Be3 {[%emt 0:03:43]} Ng7 {[%emt 0:01:50]} 19. Nh2 {[%emt 0:00:44]} Rf8 {[%emt 0:10:53]} 20. Bh6 {[%emt 0:00:49]} f5 {[%emt 0:12:16]} 21. exf5 {[%emt 0:00:37]} Nxf5 {[%emt 0:00:10]} 22. Bxf8 {[%emt 0:01:02]} Rxf8 {[%emt 0:00:19]} 23. Ng4 {[%emt 0:05:56]} Nxd5 {[%emt 0:03:56]} 24. Nxf5 {[%emt 0:02:14]} gxf5 {[%emt 0:00:46]} 25. Bxf5 {[%emt 0:00:35]} Nf4 {[%emt 0:05:31]} 26. Qc2 {[%emt 0:00:14]} h5 {[%emt 0:07:08]} 27. Ne3 {[%emt 0:00:31]} Qc6 {[%emt 0:18:20]} 28. f3 {[%emt 0:11:44]} Bh4 {[%emt 0:03:22]} 29. Be4 {[%emt 0:06:35]} Qd7 {[%emt 0:06:36]} 30. Red1 {[%emt 0:03:00]} Bxe4 {[%emt 0:05:11]} 31. Qxe4 {[%emt 0:01:10]} Qg7 {[%emt 0:01:35]} 32. Rxd6 {[%emt 0:08:56]} Qg3 {[%emt 0:01:19]} 33. Kh1 {[%emt 0:01:21]} Kh8 {[%emt 0:01:11]} 34. Rh6+ {[%emt 0:01:04]} 1-0